bitfinex-derivatives/quotes_ETHF0:USTF0_20240915
["timestamp","ask_amount","ask_price","bid_price","bid_amount"]
[1726358885217,7.86430759,2419.8,2419.7,0.1898593]
[1726358887725,4.65650759,2419.8,2419.7,0.1898593]
[1726358887925,7.86430759,2419.8,2419.7,0.1898593]
[1726358892118,4.65650759,2419.8,2419.7,0.1898593]
[1726358892428,7.86430759,2419.8,2419.7,0.1898593]
[1726358893628,4.65650759,2419.8,2419.7,0.1898593]
[1726358893925,7.86430759,2419.8,2419.7,0.1898593]
[1726358894228,4.65650759,2419.8,2419.7,0.1898593]
[1726358894428,7.86430759,2419.8,2419.7,0.1898593]
[1726358895135,4.65650759,2419.8,2419.7,0.1898593]
[1726358895431,7.86430759,2419.8,2419.7,0.1898593]
[1726358896635,4.65650759,2419.8,2419.7,0.1898593]
[1726358898325,7.86430759,2419.8,2419.7,0.1898593]
[1726358898928,9.35430759,2419.8,2419.7,0.1898593]
[1726358899523,6.14650759,2419.8,2419.7,0.1898593]
[1726358899727,9.35430759,2419.8,2419.7,0.1898593]
[1726358900529,6.14650759,2419.8,2419.7,0.1898593]
[1726358901533,9.35430759,2419.8,2419.7,0.1898593]
[1726358904441,5.02829,2419.8,2419.7,0.1898593]
[1726358907248,9.89574261,2419.8,2419.7,0.1898593]
[1726358907842,6.68794261,2419.8,2419.7,0.1898593]
[1726358908245,9.89574261,2419.8,2419.7,0.1898593]
[1726358910048,6.68794261,2419.8,2419.7,0.1898593]
[1726358910353,9.89574261,2419.8,2419.7,0.1898593]
[1726358915353,5.02829,2419.8,2419.7,0.1898593]
[1726358916059,1.82049,2419.8,2419.7,0.1898593]
[1726358916258,10.43984701,2419.8,2419.7,0.1898593]
[1726358917757,5.02829,2419.8,2419.7,0.1898593]
[1726358918460,1.82049,2419.8,2419.7,0.1898593]
[1726358918654,5.02829,2419.8,2419.7,0.1898593]
[1726358919250,10.43984701,2419.8,2419.7,0.1898593]
[1726358919850,5.02829,2419.8,2419.7,0.1898593]
[1726358920056,1.82049,2419.8,2419.7,0.1898593]
[1726358920257,7.23204701,2419.8,2419.7,0.1898593]
[1726358920665,10.43984701,2419.8,2419.7,0.1898593]
[1726358921162,7.23204701,2419.8,2419.7,0.1898593]
[1726358921366,10.43984701,2419.8,2419.7,0.1898593]
[1726358921664,5.02829,2419.8,2419.7,0.1898593]
[1726358922462,10.43984701,2419.8,2419.7,0.1898593]
[1726358922860,5.02829,2419.8,2419.7,0.1898593]
[1726358924171,1.82049,2419.8,2419.7,0.1898593]
[1726358924466,5.02829,2419.8,2419.7,0.1898593]
[1726358925861,1.82049,2419.8,2419.7,0.1898593]
[1726358926056,5.02829,2419.8,2419.7,0.1898593]
[1726358926862,1.82049,2419.8,2419.7,0.1898593]
[1726358927063,5.02829,2419.8,2419.7,0.1898593]
[1726358927659,10.43984701,2419.8,2419.7,0.1898593]
[1726358929063,5.02829,2419.8,2419.7,0.1898593]
[1726358929863,10.43984701,2419.8,2419.7,0.1898593]
[1726358932976,7.23204701,2419.8,2419.7,0.1898593]
[1726358933165,10.43984701,2419.8,2419.7,0.1898593]
[1726358937271,7.23204701,2419.8,2419.7,0.1898593]
[1726358937468,10.43984701,2419.8,2419.7,0.1898593]
[1726358937866,7.23204701,2419.8,2419.7,0.1898593]
[1726358938075,10.43984701,2419.8,2419.7,0.1898593]
[1726358939569,10.10935701,2419.8,2419.7,0.1898593]
[1726358939770,14.63521303,2419.8,2419.7,10.6531593]
[1726358940074,3.25485063,2419.8,2419.7,15.0204593]
[1726358940269,3.25485063,2419.8,2419.7,6.1971593]
[1726358940474,3.25485063,2419.8,2419.7,12.5963593]
[1726358940781,3.25485063,2419.8,2419.7,5.1063593]
[1726358941267,3.79771258,2419.9,2419.7,5.1063593]
[1726358941268,3.25485063,2419.9,2419.7,5.1063593]
[1726358941468,3.25485063,2419.9,2419.8,0.4033]
[1726358941863,3.25485063,2419.9,2419.8,4.5361]
[1726358943379,3.25485063,2419.9,2419.8,0.4033]
[1726358943869,3.25485063,2419.9,2419.8,4.5361]
[1726358944074,3.25485063,2419.9,2419.8,0.4033]
[1726358944273,7.95265063,2420.0,2419.8,4.5361]
[1726358944468,7.95265063,2420.0,2419.8,0.4033]
[1726358945466,7.95265063,2420.0,2419.9,0.191]
[1726358945871,4.74485063,2420.0,2419.9,0.191]
[1726358946071,7.95265063,2420.0,2419.9,0.191]
[1726358946974,6.46265063,2420.0,2419.9,0.191]
[1726358947575,3.25485063,2420.0,2419.9,0.191]
[1726358947879,6.46265063,2420.0,2419.9,0.191]
[1726358949378,3.2078,2420.0,2419.9,0.191]
[1726358954578,4.74485063,2420.1,2419.9,0.191]
[1726358954888,4.74485063,2420.1,2420.0,0.3718]
[1726358955084,4.74485063,2420.1,2420.0,0.7794]
[1726358955275,7.95265063,2420.1,2420.0,0.7794]
[1726358956087,4.74485063,2420.1,2420.0,0.7794]
[1726358956485,7.95265063,2420.1,2420.0,0.7794]
[1726358958488,4.6978,2420.1,2420.0,0.7794]
[1726358958688,7.95265063,2420.1,2420.0,0.7794]
[1726358959489,4.6978,2420.1,2420.0,0.7794]
[1726358959692,3.2078,2420.1,2420.0,0.7794]
[1726358960287,3.2078,2420.1,2420.0,0.9706]
[1726358963496,3.96818063,2420.2,2420.0,0.9706]
[1726358963698,3.2078,2420.1,2420.0,0.9706]
[1726358964896,7.95265063,2420.1,2420.0,0.1912]
[1726358966295,4.6978,2420.1,2420.0,0.1912]
[1726358968298,8.49551258,2420.1,2420.0,0.1912]
[1726358969603,4.6978,2420.1,2420.0,0.1912]
[1726358969802,1.49,2420.1,2420.0,0.1912]
[1726358970003,4.6978,2420.1,2420.0,0.1912]
[1726358970299,8.49551258,2420.1,2420.0,0.1912]
[1726358970799,8.82595258,2420.1,2420.0,0.1912]
[1726358971302,8.49551258,2420.1,2420.0,0.1912]
[1726358971690,5.28771258,2420.1,2420.0,0.1912]
[1726358971892,8.49551258,2420.1,2420.0,0.1912]
[1726358972202,5.28771258,2420.1,2420.0,0.1912]
[1726358972397,8.49551258,2420.1,2420.0,0.1912]
[1726358973495,5.28771258,2420.1,2420.0,0.1912]
[1726358973695,8.49551258,2420.1,2420.0,0.1912]
[1726358978205,5.28771258,2420.1,2420.0,0.1912]
[1726358978399,8.49551258,2420.1,2420.0,0.1912]
[1726358980206,4.6978,2420.1,2420.0,0.1912]
[1726358981700,1.49,2420.1,2420.0,0.1912]
[1726358981905,4.6978,2420.1,2420.0,0.1912]
[1726358982110,9.03813526,2420.1,2420.0,0.1912]
[1726358982411,9.36857526,2420.1,2420.0,0.1912]
[1726358983707,9.03813526,2420.1,2420.0,0.1912]
[1726358985005,5.83033526,2420.1,2420.0,0.1912]
[1726358985198,4.6978,2420.1,2420.0,0.1912]
[1726358988217,9.58112076,2420.1,2420.0,0.1912]
[1726358989106,4.6978,2420.1,2420.0,0.1912]
[1726358990416,5.02824,2420.1,2420.0,0.1912]
[1726358990609,9.91156076,2420.1,2420.0,0.1912]
[1726358994113,10.23341359,2420.1,2420.0,0.1912]
[1726358995816,9.91156076,2420.1,2420.0,0.1912]
[1726358998418,6.70376076,2420.1,2420.0,0.1912]
[1726358998816,9.91156076,2420.1,2420.0,0.1912]
[1726358999717,6.70376076,2420.1,2420.0,0.1912]
[1726358999928,9.91156076,2420.1,2420.0,0.1912]
[1726359000118,6.70376076,2420.1,2420.0,0.1912]
[1726359000512,9.91156076,2420.1,2420.0,0.1912]
[1726359002321,14.04356076,2420.1,2420.0,0.1912]
[1726359003815,9.91156076,2420.1,2420.0,0.1912]
[1726359004017,9.91156076,2420.1,2420.0,0.578]
[1726359010521,5.02824,2420.1,2420.0,0.578]
[1726359010727,5.02824,2420.1,2420.0,0.1912]
[1726359012321,10.43979701,2420.1,2420.0,0.1912]
[1726359014926,10.50933159,2420.1,2420.0,0.1912]
[1726359015225,10.43979701,2420.1,2420.0,0.1912]
[1726359015428,10.50933208,2420.1,2420.0,0.1912]
[1726359016227,5.09777507,2420.1,2420.0,0.1912]
[1726359018231,5.09777728,2420.1,2420.0,0.1912]
[1726359018427,5.02824,2420.1,2420.0,0.1912]
[1726359018622,1.88997713,2420.1,2420.0,0.1912]
[1726359018823,5.09777713,2420.1,2420.0,0.1912]
[1726359019526,10.51800187,2420.1,2420.0,0.1912]
[1726359021525,7.31020187,2420.1,2420.0,0.1912]
[1726359021731,10.51800187,2420.1,2420.0,0.1912]
[1726359022628,10.44846474,2420.1,2420.0,0.1912]
[1726359022835,10.51800198,2420.1,2420.0,0.1912]
[1726359023232,10.44846474,2420.1,2420.0,0.1912]
[1726359023537,10.51800179,2420.1,2420.0,0.1912]
[1726359026728,10.44846474,2420.1,2420.0,0.1912]
[1726359027040,10.51800185,2420.1,2420.0,0.1912]
[1726359027337,7.31020185,2420.1,2420.0,0.1912]
[1726359027634,10.51800185,2420.1,2420.0,0.1912]
[1726359028034,7.31020185,2420.1,2420.0,0.1912]
[1726359028740,10.51800185,2420.1,2420.0,0.1912]
[1726359029737,10.51800176,2420.1,2420.0,0.1912]
[1726359031032,10.51800214,2420.1,2420.0,0.1912]
[1726359034342,10.11802474,2420.1,2420.0,0.1912]
[1726359034746,9.57484841,2420.1,2420.0,0.1912]
[1726359034947,4.6978,2420.1,2420.0,0.1912]
[1726359036341,9.03275794,2420.1,2420.0,0.1912]
[1726359037744,4.6978,2420.1,2420.0,0.1912]
[1726359039044,1.49,2420.1,2420.0,0.1912]
[1726359039252,4.6978,2420.1,2420.0,0.1912]
[1726359044546,1.49,2420.1,2420.0,0.1912]
[1726359044744,4.6978,2420.1,2420.0,0.1912]
[1726359045547,5.02824,2420.1,2420.0,0.1912]
[1726359047549,4.6978,2420.1,2420.0,0.1912]
[1726359047748,5.02824,2420.1,2420.0,0.1912]
[1726359048660,4.6978,2420.1,2420.0,0.1912]
[1726359048949,9.57484841,2420.1,2420.0,0.1912]
[1726359050261,6.36704841,2420.1,2420.0,0.1912]
[1726359051458,9.57484841,2420.1,2420.0,0.1912]
[1726359051956,4.6978,2420.1,2420.0,0.1912]
[1726359052452,1.49,2420.1,2420.0,0.1912]
[1726359053046,4.6978,2420.1,2420.0,0.1912]
[1726359054349,9.03281093,2420.1,2420.0,0.1912]
[1726359055456,13.90985934,2420.1,2420.0,0.1912]
[1726359055656,9.57484841,2420.1,2420.0,0.1912]
[1726359055859,6.36704841,2420.1,2420.0,0.1912]
[1726359056059,9.57484841,2420.1,2420.0,0.1912]
[1726359056560,9.03267487,2420.1,2420.0,0.1912]
[1726359057253,9.03269311,2420.1,2420.0,0.1912]
[1726359059562,5.82489311,2420.1,2420.0,0.1912]
[1726359059757,9.03269311,2420.1,2420.0,0.1912]
[1726359060460,5.82489311,2420.1,2420.0,0.1912]
[1726359060659,9.03269311,2420.1,2420.0,0.1912]
[1726359060862,7.54269311,2420.1,2420.0,0.1912]
[1726359061062,3.79249101,2420.1,2420.0,4.3232]
[1726359061261,4.33489311,2420.2,2420.0,4.3232]
[1726359061262,3.79249101,2420.2,2420.0,4.3232]
[1726359061465,3.2504294,2420.1,2420.0,4.132]
[1726359063263,3.2504294,2420.1,2420.0,4.3242]
[1726359069062,3.53823,2420.2,2420.0,4.3242]
[1726359069063,3.5808594,2420.2,2420.0,4.3242]
[1726359069263,3.2504294,2420.1,2420.0,0.1922]
[1726359069769,3.2504294,2420.1,2420.0,4.3242]
[1726359070367,0.33043,2420.2,2420.0,4.3242]
[1726359070368,6.7886594,2420.2,2420.0,4.3242]
[1726359070661,3.2504294,2420.1,2420.0,0.1922]
[1726359070854,6.7886594,2420.2,2420.0,0.1922]
[1726359071059,3.2504294,2420.1,2420.0,0.1922]
[1726359071456,3.2504294,2420.1,2420.0,4.3242]
[1726359071664,3.5808594,2420.2,2420.0,4.3242]
[1726359071865,6.7886594,2420.2,2420.0,0.1922]
[1726359072066,3.2504294,2420.1,2420.0,0.1922]
[1726359072272,6.7886594,2420.2,2420.0,0.1922]
[1726359072465,3.5808594,2420.2,2420.0,0.1922]
[1726359072665,6.7886594,2420.2,2420.0,0.1922]
[1726359072869,6.7886594,2420.2,2420.1,0.3868]
[1726359074063,3.53823,2420.2,2420.1,0.3868]
[1726359075066,6.78616936,2420.2,2420.1,0.3868]
[1726359075473,3.53823,2420.2,2420.1,0.3868]
[1726359076167,6.78622607,2420.2,2420.1,0.3868]
[1726359076565,3.53823,2420.2,2420.1,0.3868]
[1726359076970,3.53823,2420.2,2420.1,0.7739]
[1726359076971,3.2078,2420.2,2420.1,0.7739]
[1726359078269,3.53823,2420.2,2420.1,0.7739]
[1726359078967,3.53823,2420.2,2420.0,0.1922]
[1726359078968,0.33044,2420.1,2420.0,0.1922]
[1726359079266,3.99006967,2420.1,2420.0,0.1922]
[1726359080168,3.99006967,2420.1,2420.0,4.3242]
[1726359080375,3.65962967,2420.1,2420.0,4.3242]
[1726359081473,3.65962967,2420.1,2420.0,4.7099]
[1726359084779,3.24862967,2420.1,2420.0,4.7099]
[1726359085884,6.45642967,2420.2,2420.0,4.7099]
[1726359086079,6.45642967,2420.2,2420.0,0.3857]
[1726359086277,6.45642967,2420.2,2420.1,0.3757]
[1726359087378,6.78685967,2420.2,2420.1,0.3757]
[1726359087772,6.45642967,2420.2,2420.1,0.5681]
[1726359088580,3.2078,2420.2,2420.1,0.5681]
[1726359089478,5.98921101,2420.3,2420.1,0.5681]
[1726359089681,3.2078,2420.2,2420.1,0.5681]
[1726359090776,6.45694824,2420.2,2420.1,0.5681]
[1726359095480,3.24914824,2420.2,2420.1,0.5681]
[1726359095675,6.45694824,2420.2,2420.1,0.5681]
[1726359096783,6.4578026,2420.2,2420.1,0.5681]
[1726359096974,3.2078,2420.2,2420.1,0.5681]
[1726359097677,5.65879101,2420.3,2420.1,0.5681]
[1726359097892,3.2078,2420.2,2420.1,0.5681]
[1726359101888,7.00029101,2420.2,2420.1,0.5681]
[1726359105488,7.00213309,2420.2,2420.1,0.5681]
[1726359115104,3.79433309,2420.2,2420.1,0.5681]
[1726359115312,7.00213309,2420.2,2420.1,0.5681]
[1726359118915,3.2078,2420.2,2420.1,0.5681]
[1726359119111,3.2078,2420.2,2420.1,0.1924]
[1726359119312,3.9853,2420.2,2420.1,0.1924]
[1726359123822,3.6112,2420.2,2420.1,0.1924]
[1726359124020,3.6112,2420.2,2420.1,0.5989]
[1726359130729,3.6112,2420.2,2420.1,0.1924]
[1726359131628,7.94609311,2420.2,2420.1,0.1924]
[1726359131832,3.6112,2420.2,2420.1,0.1924]
[1726359132338,7.94609311,2420.2,2420.1,0.1924]
[1726359132523,3.6112,2420.2,2420.1,0.1924]
[1726359133323,7.94609311,2420.2,2420.1,0.1924]
[1726359133537,3.6112,2420.2,2420.1,0.1924]
[1726359133829,7.94609311,2420.2,2420.1,0.1924]
[1726359134028,3.6112,2420.2,2420.1,0.5727]
[1726359135435,7.94609311,2420.2,2420.1,0.5727]
[1726359137737,7.54269311,2420.2,2420.1,0.5727]
[1726359165846,3.2078,2420.2,2420.1,0.5727]
[1726359166046,7.54269311,2420.2,2420.1,0.5727]
[1726359168656,3.2078,2420.2,2420.1,0.5727]
[1726359168843,3.2078,2420.2,2420.1,11.03514]
[1726359168844,3.25460574,2420.2,2420.1,11.03514]
[1726359169050,8.77020514,2420.4,2420.3,0.33042]
[1726359169051,3.35060574,2420.4,2420.3,0.33042]
[1726359169254,3.25460574,2420.4,2420.3,5.95242]
[1726359169557,3.2078,2420.6,2420.4,0.3304]
[1726359169850,3.2078,2420.6,2420.5,2.2908]
[1726359170045,3.2078,2420.6,2420.5,6.422]
[1726359171049,3.2078,2420.6,2420.5,6.6157]
[1726359171445,5.91440504,2420.6,2420.5,6.6157]
[1726359174453,3.2078,2420.6,2420.5,6.6157]
[1726359176455,5.37053063,2420.6,2420.5,6.6157]
[1726359176656,2.16273063,2420.6,2420.5,6.6157]
[1726359182359,2.16273063,2420.6,2420.5,6.94609]
[1726359182556,5.37053063,2420.7,2420.5,6.94609]
[1726359182770,5.37053063,2420.7,2420.6,0.4121]
[1726359183155,5.37053063,2420.7,2420.6,4.5433]
[1726359183967,5.37053063,2420.7,2420.6,4.87368]
[1726359184269,5.37053063,2420.7,2420.6,4.5433]
[1726359186668,3.2078,2420.7,2420.6,4.5433]
[1726359187668,6.08318063,2420.8,2420.6,4.5433]
[1726359187868,6.08318063,2420.8,2420.7,1.49]
[1726359188071,5.75283063,2420.8,2420.7,1.49]
[1726359188271,2.54503063,2420.8,2420.7,1.49]
[1726359188475,2.54503063,2420.8,2420.7,5.6212]
[1726359188673,5.75283063,2420.8,2420.7,5.6212]
[1726359188976,5.75283063,2420.8,2420.7,1.49]
[1726359189168,5.75283063,2420.8,2420.7,5.6212]
[1726359190271,5.75283063,2420.8,2420.7,1.49]
[1726359190477,5.75283063,2420.8,2420.6,1.9021]
[1726359190769,5.75283063,2420.8,2420.5,0.9945]
[1726359190770,2.16273063,2420.7,2420.5,0.1937]
[1726359190968,2.57233063,2420.7,2420.5,0.1937]
[1726359191283,2.57233063,2420.7,2420.5,2.01409]
[1726359191772,2.57233063,2420.7,2420.6,0.3882]
[1726359191980,2.57233063,2420.7,2420.6,0.7942]
[1726359192790,5.78013063,2420.7,2420.6,0.7942]
[1726359194873,5.78013063,2420.7,2420.6,0.9883]
[1726359196179,2.57233063,2420.7,2420.6,0.9883]
[1726359196777,5.78013063,2420.7,2420.6,0.9883]
[1726359198485,3.6174,2420.7,2420.6,0.9883]
[1726359198985,5.77785751,2420.7,2420.6,0.9883]
[1726359199378,3.6174,2420.7,2420.6,0.9883]
[1726359201379,3.2078,2420.7,2420.6,0.9883]
[1726359201686,3.2078,2420.7,2420.6,1.3618]
[1726359203675,3.08890504,2420.8,2420.6,1.3618]
[1726359204182,6.29670504,2420.8,2420.6,1.3618]
[1726359204687,2.70660504,2420.7,2420.6,1.3618]
[1726359208682,2.70660504,2420.7,2420.6,0.1941]
[1726359209383,3.5901,2420.8,2420.6,0.1941]
[1726359212393,6.84470574,2420.8,2420.6,0.1941]
[1726359213292,3.63690574,2420.8,2420.6,0.1941]
[1726359213691,7.17505574,2420.8,2420.6,0.1941]
[1726359213885,0.3747,2420.7,2420.6,0.1941]
[1726359214390,3.62930574,2420.7,2420.6,0.1941]
[1726359215393,0.3747,2420.7,2420.6,0.1941]
[1726359220992,3.62741844,2420.7,2420.6,0.1941]
[1726359221191,3.62741844,2420.7,2420.6,0.5666]
[1726359221588,3.62741844,2420.7,2420.6,0.9724]
[1726359221789,3.25271844,2420.7,2420.6,0.9724]
[1726359221987,3.25271844,2420.7,2420.6,1.3818]
[1726359222383,7.38725673,2420.8,2420.6,1.3818]
[1726359222384,3.5901,2420.8,2420.6,1.3818]
[1726359222598,3.5901,2420.8,2420.6,1.1877]
[1726359224292,3.5901,2420.8,2420.7,0.1947]
[1726359224492,0.3823,2420.8,2420.7,0.1947]
[1726359224689,3.5901,2420.8,2420.7,1.6847]
[1726359228496,0.3823,2420.8,2420.7,1.6847]
[1726359228706,3.5901,2420.8,2420.7,1.6847]
[1726359230199,0.3823,2420.8,2420.7,1.6847]
[1726359230401,3.5901,2420.8,2420.7,1.6847]
[1726359232302,3.2078,2420.8,2420.7,2.01506]
[1726359236705,0.096,2420.9,2420.7,2.01506]
[1726359237012,3.58303844,2421.0,2420.8,1.49]
[1726359237013,6.79083844,2421.0,2420.8,1.49]
[1726359237598,6.46051844,2421.0,2420.8,1.49]
[1726359238399,6.46051844,2421.0,2420.9,0.4107]
[1726359240009,3.25271844,2421.0,2420.9,0.4107]
[1726359240306,6.46051844,2421.0,2420.9,0.4107]
[1726359242604,6.46051844,2421.0,2420.8,1.49]
[1726359244005,6.46051844,2421.0,2420.9,0.1952]
[1726359246612,3.25271844,2421.0,2420.9,0.1952]
[1726359246813,6.46051844,2421.0,2420.9,0.1952]
[1726359247007,3.25271844,2421.0,2420.9,0.1952]
[1726359248008,6.46051844,2421.0,2420.9,0.1952]
[1726359249415,6.79083844,2421.0,2420.9,0.1952]
[1726359251114,3.58303844,2421.0,2420.9,0.1952]
[1726359251325,3.25271844,2421.0,2420.9,0.1952]
[1726359251510,3.25271844,2421.0,2420.9,1.6852]
[1726359253417,3.63651844,2421.1,2420.9,1.6852]
[1726359254723,3.25271844,2421.0,2420.9,0.1952]
[1726359255619,3.63651844,2421.1,2420.9,0.1952]
[1726359256427,3.63651844,2421.1,2420.9,1.6852]
[1726359257625,6.84431844,2421.1,2420.9,1.6852]
[1726359260022,3.63651844,2421.1,2420.9,1.6852]
[1726359260224,6.84431844,2421.1,2420.9,1.6852]
[1726359261322,6.84431844,2421.1,2421.0,0.7633]
[1726359271830,3.63651844,2421.1,2421.0,0.7633]
[1726359272038,6.84431844,2421.1,2421.0,0.7633]
[1726359272434,3.5916,2421.1,2421.0,0.7633]
[1726359272827,6.84230591,2421.1,2421.0,0.7633]
[1726359273736,3.5916,2421.1,2421.0,0.959]
[1726359276543,0.3838,2421.1,2421.0,0.959]
[1726359277236,3.5916,2421.1,2421.0,0.959]
[1726359277539,7.38875673,2421.1,2421.0,0.959]
[1726359278136,4.18095673,2421.1,2421.0,0.959]
[1726359278331,7.38875673,2421.1,2421.0,0.959]
[1726359279032,4.18095673,2421.1,2421.0,0.959]
[1726359279943,7.38875673,2421.1,2421.0,0.959]
[1726359284541,4.18095673,2421.1,2421.0,0.959]
[1726359285340,7.38875673,2421.1,2421.0,0.959]
[1726359285746,3.5916,2421.1,2421.0,0.959]
[1726359286048,7.38875673,2421.1,2421.0,0.959]
[1726359286938,3.5916,2421.1,2421.0,0.959]
[1726359287348,7.38875673,2421.1,2421.0,0.959]
[1726359293639,4.18095673,2421.1,2421.0,0.959]
[1726359293840,7.38875673,2421.1,2421.0,0.959]
[1726359294246,4.18095673,2421.1,2421.0,0.959]
[1726359294542,7.38875673,2421.1,2421.0,0.959]
[1726359295754,3.5916,2421.1,2421.0,0.959]
[1726359296052,0.3838,2421.1,2421.0,0.959]
[1726359297747,3.5916,2421.1,2421.0,0.959]
[1726359305057,0.3838,2421.1,2421.0,0.959]
[1726359305259,3.5916,2421.1,2421.0,0.959]
[1726359306261,0.3838,2421.1,2421.0,0.959]
[1726359306463,3.5916,2421.1,2421.0,0.959]
[1726359306663,7.38875673,2421.1,2421.0,0.959]
[1726359308559,4.18095673,2421.1,2421.0,0.959]
[1726359308754,7.38875673,2421.1,2421.0,0.959]
[1726359310463,3.5916,2421.1,2421.0,0.959]
[1726359311858,7.38692192,2421.1,2421.0,0.959]
[1726359312057,3.5916,2421.1,2421.0,0.959]
[1726359316755,7.38674673,2421.1,2421.0,0.959]
[1726359321372,7.71705673,2421.1,2421.0,0.1957]
[1726359321568,8.09415673,2421.1,2421.0,0.1957]
[1726359321760,4.67651,2421.1,2421.0,0.1957]
[1726359322067,9.01140311,2421.1,2421.0,0.1957]
[1726359325163,5.80360311,2421.1,2421.0,0.1957]
[1726359325469,9.01140311,2421.1,2421.0,0.1957]
[1726359326168,5.80360311,2421.1,2421.0,0.1957]
[1726359326469,9.01140311,2421.1,2421.0,0.1957]
[1726359329475,4.67651,2421.1,2421.0,0.1957]
[1726359329975,9.01140311,2421.1,2421.0,0.1957]
[1726359330274,4.67651,2421.1,2421.0,0.1957]
[1726359331574,0.33035,2420.8,2420.7,0.096]
[1726359331778,7.54269311,2420.8,2420.4,0.096]
[1726359331970,6.46005209,2420.5,2420.4,0.096]
[1726359332167,3.2078,2420.5,2420.3,1.49]
[1726359332468,0.408,2420.4,2420.3,1.49]
[1726359337380,3.11305214,2420.4,2420.3,1.49]
[1726359344982,0.408,2420.4,2420.3,1.49]
[1726359346088,3.11305214,2420.4,2420.3,1.49]
[1726359354699,7.24505214,2420.4,2420.1,0.096]
[1726359354888,5.37078208,2420.2,2420.1,1.586]
[1726359355088,5.37078208,2420.2,2420.1,1.49]
[1726359356296,5.37078208,2420.2,2420.1,1.869]
[1726359356883,3.2078,2420.2,2420.1,1.869]
[1726359357090,3.2078,2420.2,2420.1,0.379]
[1726359357392,3.2078,2420.2,2420.1,1.869]
[1726359362095,2.70505214,2420.2,2420.1,1.869]
[1726359363498,2.70505214,2420.2,2419.9,0.7891]
[1726359363700,2.70505214,2420.0,2419.8,1.9617]
[1726359363905,2.16333277,2419.9,2419.8,1.8657]
[1726359364198,2.16332002,2419.9,2419.8,1.8657]
[1726359364392,5.91285214,2420.0,2419.8,1.8657]
[1726359364596,2.16322387,2419.9,2419.8,1.8657]
[1726359364791,5.91285214,2420.0,2419.8,1.8657]
[1726359366297,5.91285214,2420.0,2419.8,0.3757]
[1726359366600,3.2078,2420.0,2419.9,1.49]
[1726359366802,5.91176637,2420.0,2419.9,1.49]
[1726359367506,3.2078,2420.0,2419.9,1.49]
[1726359368698,5.91149542,2420.0,2419.9,1.49]
[1726359371901,2.70369542,2420.0,2419.9,1.49]
[1726359372102,5.91149542,2420.0,2419.9,1.49]
[1726359373503,2.70369542,2420.0,2419.9,1.49]
[1726359373705,5.91149542,2420.0,2419.9,1.49]
[1726359374505,5.91218338,2420.0,2419.9,1.49]
[1726359375403,3.2078,2420.0,2419.9,1.49]
[1726359376003,0.3789,2420.1,2419.9,1.49]
[1726359376507,3.2078,2420.0,2419.9,1.49]
[1726359377205,3.2078,2420.0,2419.9,1.82047]
[1726359377408,2.70570848,2420.1,2420.0,0.33046]
[1726359377706,1.62299784,2420.2,2420.0,8.8298]
[1726359377915,1.00349784,2420.3,2420.2,0.33043]
[1726359378201,2.16399712,2420.4,2420.1,6.0158]
[1726359378202,0.096,2420.5,2420.4,0.3304]
[1726359378508,2.16399712,2420.6,2420.4,5.95159]
[1726359378704,2.16399712,2420.6,2420.4,1.82039]
[1726359378895,2.16399712,2420.6,2420.5,0.70879]
[1726359380703,2.16399712,2420.6,2420.5,0.3784]
[1726359382601,2.16399712,2420.6,2420.5,4.5096]
[1726359382999,2.16399712,2420.6,2420.5,4.9217]
[1726359384099,2.16399712,2420.6,2420.5,0.7905]
[1726359384613,2.57399712,2420.7,2420.5,0.7905]
[1726359393211,5.78179712,2420.7,2420.5,0.7905]
[1726359393514,2.57399712,2420.7,2420.5,0.7905]
[1726359393712,5.78179712,2420.7,2420.5,0.7905]
[1726359395418,5.78179712,2420.7,2420.5,1.12089]
[1726359396009,2.57399712,2420.7,2420.5,1.12089]
[1726359396214,5.78179712,2420.7,2420.5,1.12089]
[1726359396610,2.57399712,2420.7,2420.5,1.12089]
[1726359396814,5.78179712,2420.7,2420.5,1.12089]
[1726359397520,5.78179712,2420.7,2420.5,0.7905]
[1726359398020,2.57399712,2420.7,2420.5,0.7905]
[1726359398221,5.78179712,2420.7,2420.5,0.7905]
[1726359399411,3.6178,2420.7,2420.5,0.7905]
[1726359400621,0.4035,2420.6,2420.5,0.7905]
[1726359401517,0.4035,2420.6,2420.5,0.3784]
[1726359401714,0.7853,2420.6,2420.5,0.3784]
[1726359402623,0.7853,2420.6,2420.3,0.33042]
[1726359404119,2.94929712,2420.6,2420.3,0.33042]
[1726359404318,0.7853,2420.6,2420.3,0.33042]
[1726359404813,0.7853,2420.6,2420.4,1.49]
[1726359407214,0.7853,2420.6,2420.4,1.8204]
[1726359407725,0.7853,2420.6,2420.5,0.3864]
[1726359410528,0.7853,2420.6,2420.5,0.7649]
[1726359413524,2.94929712,2420.6,2420.5,0.7649]
[1726359416035,2.94929712,2420.6,2420.5,1.09529]
[1726359417736,2.16399712,2420.6,2420.5,2.58529]
[1726359419639,6.32350848,2420.7,2420.5,2.58529]
[1726359420140,3.11570848,2420.7,2420.5,2.58529]
[1726359420632,2.70570848,2420.6,2420.5,2.58529]
[1726359421045,6.32350848,2420.7,2420.5,2.58529]
[1726359421228,2.70570848,2420.6,2420.5,2.58529]
[1726359423235,0.41,2420.7,2420.5,2.58529]
[1726359423437,3.6178,2420.7,2420.5,2.58529]
[1726359424544,3.6178,2420.7,2420.6,0.33038]
[1726359428351,3.6178,2420.7,2420.5,2.58528]
[1726359428645,0.4116,2420.6,2420.5,2.58528]
[1726359428849,0.8211,2420.6,2420.5,2.58528]
[1726359431453,0.4116,2420.6,2420.5,2.58528]
[1726359440753,2.71008261,2420.6,2420.5,7.25357507]
[1726359441146,2.71008261,2420.6,2420.5,7.64737507]
[1726359441853,2.71008261,2420.6,2420.5,8.10724999]
[1726359442152,2.71008261,2420.7,2420.6,0.33038]
[1726359442352,2.71008261,2420.7,2420.6,1.82038]
[1726359442553,2.71008261,2420.7,2420.6,6.48857318]
[1726359442757,2.71008261,2420.7,2420.6,6.48857268]